lending/lending_fUSD_20260222
["ID","MTS","AMOUNT","RATE_DAILY","PERIOD"]
[406320719,1771733464045,-151.62199673,0.00044383,120]
[406320720,1771733464054,-500.0,0.00044383,120]
[406320721,1771733464063,-500.0,0.00044383,120]
[406320722,1771733464072,-516.04131794,0.00044383,120]
[406320723,1771733464081,-229.05214598,0.00044383,120]
[406320724,1771733464090,-215.13836532,0.00044383,120]
[406320725,1771733464099,-194.96177835,0.00044383,120]
[406320726,1771733464107,-300.36092052,0.00044383,120]
[406320727,1771733464116,-166.67200631,0.00044383,120]
[406320728,1771733464125,-500.0,0.00044383,120]
[406320729,1771733464138,-500.0,0.00044383,120]
[406320730,1771733464158,-500.0,0.00044383,120]
[406320731,1771733464176,-500.0,0.00044383,120]
[406320732,1771733464185,-500.0,0.00044383,120]
[406320733,1771733464194,-500.0,0.00044383,120]
[406320734,1771733464205,-500.0,0.00044383,120]
[406320735,1771733464215,-213.77068279,0.00044383,120]
[406320736,1771733464224,-500.0,0.00044383,30]
[406320737,1771733464235,-500.0,0.00044383,120]
[406320738,1771733464246,-411.26651818,0.00044383,120]
[406320739,1771733464260,-313.10093488,0.00044383,30]
[406320740,1771733464284,-500.0,0.00044383,120]
[406320741,1771733464299,-500.0,0.00044383,120]
[406320742,1771733464311,-500.0,0.00044383,120]
[406320743,1771733464321,-213.64271787,0.00044383,120]
[406320744,1771733464331,-500.0,0.00044383,120]
[406320745,1771733464341,-241.70173866,0.00044383,120]
[406320746,1771733464351,-257.47293199,0.00044383,120]
[406320747,1771733464363,-607.72374762,0.00044383,120]
[406320748,1771733464371,-168.8455475,0.00044383,120]
[406320749,1771733464382,-165.60100531,0.00044383,120]
[406320750,1771733464393,-500.0,0.00044383,120]
[406320751,1771733464406,-500.0,0.00044383,120]
[406320752,1771733464417,-521.55793079,0.00044383,120]
[406320753,1771733464427,-500.0,0.00044383,120]
[406320754,1771733464439,-500.0,0.00044383,120]
[406320755,1771733464449,-500.0,0.00044383,120]
[406320756,1771733464458,-500.0,0.00044383,120]
[406320757,1771733464468,-161.60446632,0.00044383,60]
[406320758,1771733464479,-500.0,0.00044383,120]
[406320759,1771733464490,-161.60446632,0.00044383,60]
[406320760,1771733464499,-500.0,0.00044383,120]
[406320761,1771733464508,-500.0,0.00044383,120]
[406320762,1771733464518,-500.0,0.00044383,120]
[406320763,1771733464529,-500.0,0.00044383,120]
[406320764,1771733464541,-500.0,0.00044383,120]
[406320765,1771733464552,-500.0,0.00044383,120]
[406320766,1771733464562,-500.0,0.00044383,120]
[406320767,1771733464572,-500.0,0.00044383,120]
[406320768,1771733464581,-500.0,0.00044383,120]
[406320769,1771733464591,-500.0,0.00044383,120]
[406320770,1771733464602,-189.26677223,0.00044383,120]
[406320771,1771733464611,-500.0,0.00044383,120]
[406320772,1771733464620,-194.80755553,0.00044383,120]
[406320773,1771733464630,-500.0,0.00044383,120]
[406320774,1771733464639,-500.0,0.00044383,120]
[406320775,1771733464648,-500.0,0.00044383,120]
[406320776,1771733464657,-610.96500901,0.00044383,120]
[406320777,1771733464666,-204.78279454,0.00044383,120]
[406320778,1771733464676,-500.0,0.00044383,120]
[406320779,1771733464686,-545.29189783,0.00044383,120]
[406320780,1771733464696,-531.21091872,0.00044383,120]
[406320781,1771733464705,-308.73629281,0.00044383,120]
[406320782,1771733464715,-500.0,0.00044383,120]
[406320783,1771733464724,-500.0,0.00044383,120]
[406320784,1771733464733,-500.0,0.00044383,120]
[406320785,1771733464741,-500.0,0.00044383,120]
[406320786,1771733464750,-500.0,0.00044383,120]
[406320787,1771733464760,-347.98203972,0.00044383,120]
[406320788,1771733464770,-500.0,0.00044383,120]
[406320789,1771733464779,-500.0,0.00044383,120]
[406320790,1771733464787,-500.0,0.00044383,120]
[406320791,1771733464796,-574.03402201,0.00044383,120]
[406320792,1771733464806,-500.0,0.00044383,120]
[406320793,1771733464815,-234.07000872,0.00044383,120]
[406320794,1771733464824,-500.0,0.00044383,120]
[406320795,1771733464833,-500.0,0.00044383,120]
[406320796,1771733464843,-500.0,0.00044383,120]
[406320797,1771733464854,-500.0,0.00044383,120]
[406320798,1771733464865,-528.49949462,0.00044383,120]
[406320799,1771733464874,-500.0,0.00044383,120]
[406320800,1771733464883,-311.13172329,0.00044383,120]
[406320801,1771733464892,-238.86301996,0.00044383,120]
[406320802,1771733464903,-154.49030531,0.00044383,120]
[406320803,1771733464912,-500.0,0.00044383,120]
[406320804,1771733464921,-558.76257092,0.00044383,120]
[406320805,1771733464932,-252.76172768,0.00044383,120]
[406320806,1771733464942,-500.0,0.00044383,120]
[406320807,1771733464951,-500.0,0.00044383,120]
[406320808,1771733464960,-500.0,0.00044383,120]
[406320809,1771733464969,-527.03625351,0.00044383,120]
[406320810,1771733464978,-171.89847064,0.00044383,120]
[406320811,1771733464987,-213.29276426,0.00044383,120]
[406320812,1771733464999,-500.0,0.00044383,120]
[406320813,1771733465017,-500.0,0.00044383,120]
[406320814,1771733465026,-500.0,0.00044383,120]
[406320815,1771733465035,-223.49632931,0.00044383,120]
[406320816,1771733465043,-179.45000159,0.00044383,120]
[406320817,1771733465052,-536.81429902,0.00044383,120]
[406320818,1771733465061,-318.6881253,0.00044383,120]
[406320819,1771733465070,-211.00342821,0.00044383,120]
[406320820,1771733465079,-211.25322829,0.00044383,120]
[406320821,1771733465088,-170.66302816,0.00044383,120]
[406320822,1771733465097,-229.59578439,0.00044383,120]
[406320823,1771733465106,-176.87086007,0.00044383,14]
[406320824,1771733465115,-157.7129796,0.00044383,120]
[406320825,1771733465125,-323.01293309,0.00044383,120]
[406320826,1771733465134,-500.0,0.00044383,120]
[406320827,1771733465143,-500.0,0.00044383,120]
[406320828,1771733465152,-458.79134149,0.00044383,120]
[406320829,1771733465161,-500.0,0.00044383,120]
[406320830,1771733465170,-362.91734178,0.00044383,120]
[406320831,1771733465179,-500.0,0.00044383,120]
[406320832,1771733465188,-502.50229536,0.00044383,120]
[406320833,1771733465197,-500.0,0.00044383,120]
[406320834,1771733465206,-189.76674221,0.00044383,120]
[406320835,1771733465216,-438.4303569,0.00044383,120]
[406320836,1771733465225,-353.86263074,0.00044383,120]
[406320837,1771733465233,-500.0,0.00044383,120]
[406320838,1771733465243,-500.0,0.00044383,120]
[406320839,1771733465252,-500.0,0.00044383,120]
[406320840,1771733465261,-243.43036831,0.00044383,120]
[406320841,1771733465270,-500.0,0.00044383,120]
[406320842,1771733465278,-608.08665814,0.00044383,120]
[406320843,1771733465287,-500.0,0.00044383,120]
[406320844,1771733465296,-500.0,0.00044383,120]
[406320845,1771733465305,-500.0,0.00044383,120]
[406320846,1771733465314,-500.0,0.00044383,120]
[406320847,1771733465322,-500.0,0.00044383,120]
[406320848,1771733465331,-500.0,0.00044383,120]
[406320849,1771733465340,-500.0,0.00044383,120]
[406320850,1771733465349,-500.0,0.00044383,120]
[406320851,1771733465359,-500.0,0.00044383,120]
[406320852,1771733465367,-500.0,0.00044383,120]
[406320853,1771733465376,-402.55300179,0.00044383,120]
[406320854,1771733465385,-203.32275054,0.00044383,120]
[406320855,1771733465395,-500.0,0.00044383,120]
[406320856,1771733465404,-274.44935067,0.00044383,120]
[406320857,1771733465413,-278.06851417,0.00044383,120]
[406320858,1771733465422,-261.71934425,0.00044383,120]
[406320859,1771733465430,-500.0,0.00044383,120]
[406320860,1771733465439,-526.49984449,0.00044383,120]
[406320861,1771733465448,-633.57624718,0.00044383,120]
[406320862,1771733465457,-754.98,0.00044383,120]
[406320863,1771733465467,-754.98,0.00044383,120]
[406320864,1771733465476,-754.98,0.00044383,120]
[406320865,1771733465485,-754.98,0.00044383,120]
[406320866,1771733465494,-754.98,0.00044383,120]
[406320867,1771733465503,-754.98,0.00044383,120]
[406320868,1771733465512,-265.4638521,0.00044383,120]
[406320869,1771733465522,-754.98,0.00044383,120]
[406320870,1771733465532,-754.98,0.00044383,120]
[406320871,1771733465540,-754.98,0.00044383,120]
[406320872,1771733465549,-754.98,0.00044383,120]
[406320873,1771733465558,-153.01076676,0.00044383,120]
[406320874,1771733465567,-754.98,0.00044383,120]
[406320875,1771733465576,-754.98,0.00044383,120]
[406320876,1771733465585,-754.98,0.00044383,120]
[406320877,1771733465594,-754.98,0.00044383,120]
[406320878,1771733465603,-754.98,0.00044383,120]
[406320879,1771733465611,-754.98,0.00044383,120]
[406320880,1771733465621,-203.24878246,0.00044383,120]
[406320881,1771733465630,-754.98,0.00044383,120]
[406320882,1771733465638,-500.0,0.00044383,120]
[406320883,1771733465647,-754.98,0.00044383,120]
[406320884,1771733465656,-754.98,0.00044383,120]
[406320885,1771733465665,-500.0,0.00044383,120]
[406320886,1771733465674,-754.98,0.00044383,120]
[406320887,1771733465683,-500.0,0.00044383,120]
[406320888,1771733465691,-754.98,0.00044383,120]
[406320889,1771733465700,-500.0,0.00044383,120]
[406320890,1771733465709,-754.98,0.00044383,120]
[406320891,1771733465718,-500.0,0.00044383,120]
[406320892,1771733465727,-754.98,0.00044383,120]
[406320893,1771733465736,-500.0,0.00044383,120]
[406320894,1771733465836,-755.01501767,0.00044383,120]
[406320895,1771733465845,-500.0,0.00044383,120]
[406320896,1771733465856,-500.0,0.00044383,120]
[406320897,1771733465866,-549.91999895,0.00044383,120]
[406320898,1771733465874,-500.0,0.00044383,120]
[406320899,1771733465883,-547.08555969,0.00044383,120]
[406320900,1771733465892,-500.0,0.00044383,120]
[406320901,1771733465902,-187.46868079,0.00044383,120]
[406320902,1771733465911,-234.3190584,0.00044383,120]
[406320903,1771733465920,-169.05029171,0.00044383,120]
[406320904,1771733465931,-500.0,0.00044383,120]
[406320905,1771733465940,-207.03666598,0.00044383,120]
[406320906,1771733465950,-500.0,0.00044383,120]
[406320907,1771733465959,-349.26401123,0.00044383,120]
[406320908,1771733465967,-500.0,0.00044383,120]
[406320909,1771733465976,-500.0,0.00044383,120]
[406320910,1771733465987,-500.0,0.00044383,120]
[406320911,1771733465996,-500.0,0.00044383,120]
[406320912,1771733466007,-500.0,0.00044383,120]
[406320913,1771733466017,-500.0,0.00044383,120]
[406320914,1771733466026,-500.0,0.00044383,120]
[406320915,1771733466034,-500.0,0.00044383,120]
[406320916,1771733466043,-500.0,0.00044383,120]
[406320917,1771733466053,-500.0,0.00044383,120]
[406320918,1771733466063,-500.0,0.00044383,120]
[406320919,1771733466071,-500.0,0.00044383,120]
[406320920,1771733466080,-500.0,0.00044383,120]
[406320921,1771733466090,-500.0,0.00044383,120]
[406320922,1771733466099,-175.47146625,0.00044383,120]
[406320923,1771733466109,-500.0,0.00044383,120]
[406320924,1771733466118,-500.0,0.00044383,120]
[406320925,1771733466127,-500.0,0.00044383,120]
[406320926,1771733466136,-365.19268956,0.00044383,120]
[406320927,1771733466145,-163.85457814,0.00044383,120]
[406320928,1771733466154,-500.0,0.00044383,120]
[406320929,1771733466163,-500.0,0.00044383,120]
[406320930,1771733466173,-500.0,0.00044383,120]
[406320931,1771733466182,-569.2396696,0.00044383,120]
[406320932,1771733466191,-509.00327318,0.00044383,120]
[406320933,1771733466200,-175.83587738,0.00044383,120]
[406320934,1771733466209,-173.65529161,0.00044383,120]
[406320935,1771733466218,-500.0,0.00044383,120]
[406320936,1771733466227,-500.0,0.00044383,120]
[406320937,1771733466236,-500.0,0.00044383,120]
[406320938,1771733466246,-543.45192867,0.00044383,120]
[406320939,1771733466255,-262.536549,0.00044383,120]
[406320940,1771733466264,-279.78735588,0.00044383,120]
[406320941,1771733466274,-202.18283424,0.00044383,120]
[406320942,1771733466283,-201.42573668,0.00044383,120]
[406320943,1771733466292,-512.24171919,0.00044383,120]
[406320944,1771733466302,-500.0,0.00044383,120]
[406320945,1771733466311,-287.02291525,0.00044383,120]
[406320946,1771733466320,-500.0,0.00044383,120]
[406320947,1771733466329,-534.8027672,0.00044383,120]
[406320948,1771733466338,-357.93077344,0.00044383,120]
[406320949,1771733466347,-164.27840675,0.00044383,120]
[406320950,1771733466356,-500.0,0.00044383,120]
[406320951,1771733466365,-504.32207697,0.00044383,120]
[406320952,1771733466374,-521.03520322,0.00044383,120]
[406320953,1771733466383,-460.1965474,0.00044383,120]
[406320954,1771733466392,-210.8028482,0.00044383,120]
[406320955,1771733466401,-352.17270738,0.00044383,120]
[406320956,1771733466410,-500.0,0.00044383,120]
[406320957,1771733466419,-500.0,0.00044383,120]
[406320958,1771733466428,-382.34470902,0.00044383,120]
[406320959,1771733466437,-500.0,0.00044383,120]
[406320960,1771733466447,-500.0,0.00044383,120]
[406320961,1771733466456,-343.31899061,0.00044383,120]
[406320962,1771733466467,-500.0,0.00044383,120]
[406320963,1771733466476,-453.98222384,0.00044383,120]
[406320964,1771733466486,-500.0,0.00044383,120]
[406320965,1771733466495,-590.0110928,0.00044383,120]
[406320966,1771733466504,-248.85780113,0.00044383,120]
[406320967,1771733466513,-614.2181298,0.00044383,120]
[406320968,1771733466522,-531.80435216,0.00044383,120]
[406320969,1771733466531,-151.39639186,0.00044383,120]
[406320970,1771733466541,-500.0,0.00044383,60]
[406320971,1771733466557,-587.73232102,0.00044383,60]
[406320972,1771733466566,-500.0,0.00044383,120]
[406320973,1771733466575,-157.8977,0.00044383,120]
[406320974,1771733466585,-167.59264704,0.00044383,120]
[406320975,1771733466594,-510.88347156,0.00044383,120]
[406320976,1771733466604,-500.0,0.00044383,120]
[406320977,1771733466614,-494.51883029,0.00044383,120]
[406320978,1771733466625,-500.0,0.00044383,120]
[406320979,1771733466634,-500.0,0.00044383,120]
[406320980,1771733466645,-500.0,0.00044383,120]
[406320981,1771733466654,-500.0,0.00044383,120]
[406320982,1771733466664,-500.0,0.00044383,120]
[406320983,1771733466673,-500.0,0.00044383,120]
[406320984,1771733466682,-500.0,0.00044383,120]
[406320985,1771733466691,-641.29836062,0.00044383,120]
[406320986,1771733466701,-500.0,0.00044383,120]
[406320987,1771733466710,-500.0,0.00044383,120]
[406320988,1771733466719,-500.0,0.00044383,120]
[406320989,1771733466728,-615.02937854,0.00044383,120]
[406320990,1771733466738,-255.25518777,0.00044383,120]
[406320991,1771733466747,-569.98877419,0.00044383,90]
[406320992,1771733466756,-506.0465351,0.00044383,120]
[406320993,1771733466765,-452.22574285,0.00044383,120]
[406320994,1771733466775,-200.11359978,0.00044383,120]
[406320995,1771733466784,-555.9850598,0.00044383,120]
[406320996,1771733466793,-500.0,0.00044383,120]
[406320997,1771733466803,-621.84193849,0.00044383,120]
[406320998,1771733466812,-500.0,0.00044383,120]
[406320999,1771733466822,-409.21284155,0.00044383,120]
[406321000,1771733466831,-527.68282633,0.00044383,120]
[406321001,1771733466841,-500.0,0.00044383,120]
[406321002,1771733466850,-500.0,0.00044383,120]
[406321003,1771733466864,-500.0,0.00044383,120]
[406321004,1771733466873,-546.40268128,0.00044383,120]
[406321005,1771733466882,-604.73609314,0.00044383,120]
[406321006,1771733466891,-500.0,0.00044383,120]
[406321007,1771733466902,-459.75044956,0.00044383,120]
[406321008,1771733466911,-500.0,0.00044383,120]
[406321009,1771733466922,-500.0,0.00044383,120]
[406321010,1771733466933,-500.0,0.00044383,120]
[406321011,1771733466944,-500.0,0.00044383,120]
[406321012,1771733466953,-500.0,0.00044383,120]
[406321013,1771733466962,-500.0,0.00044383,120]
[406321014,1771733466971,-500.0,0.00044383,120]
[406321015,1771733466981,-500.0,0.00044383,120]
[406321016,1771733466990,-500.0,0.00044383,120]
[406321017,1771733467000,-500.0,0.00044383,120]
[406321018,1771733467009,-500.0,0.00044383,120]
[406321019,1771733467018,-500.0,0.00044383,120]
[406321020,1771733467027,-500.0,0.00044383,120]
[406321021,1771733467036,-500.0,0.00044383,120]
[406321022,1771733467046,-500.0,0.00044383,120]
[406321023,1771733467055,-500.0,0.00044383,120]
[406321024,1771733467065,-500.0,0.00044383,120]
[406321025,1771733467074,-500.0,0.00044383,120]
[406321026,1771733467083,-500.0,0.00044383,120]
[406321027,1771733467092,-500.0,0.00044383,120]
[406321028,1771733467101,-574.55521219,0.00044383,120]
[406321029,1771733467111,-500.0,0.00044383,120]
[406321030,1771733467119,-500.0,0.00044383,120]
[406321031,1771733467129,-500.0,0.00044383,120]
[406321032,1771733467140,-500.0,0.00044383,120]
[406321033,1771733467150,-500.0,0.00044383,120]
[406321034,1771733467159,-500.0,0.00044383,120]
[406321035,1771733467168,-500.0,0.00044383,120]
[406321036,1771733467181,-500.0,0.00044383,120]
[406321037,1771733467190,-500.0,0.00044383,120]
[406321038,1771733467199,-500.0,0.00044383,120]
[406321039,1771733467208,-381.30627279,0.00044383,120]
[406321040,1771733467218,-351.38741287,0.00044383,120]
[406321041,1771733467229,-500.0,0.00044383,120]
[406321042,1771733467239,-500.0,0.00044383,120]
[406321043,1771733467247,-500.0,0.00044383,120]
[406321044,1771733467257,-500.0,0.00044383,120]
[406321045,1771733467266,-500.0,0.00044383,120]
[406321046,1771733467275,-500.0,0.00044383,120]
[406321047,1771733467284,-500.0,0.00044383,120]
[406321048,1771733467293,-500.0,0.00044383,120]
[406321049,1771733467302,-443.62382688,0.00044383,120]
[406321050,1771733467311,-508.56048487,0.00044383,120]
[406321051,1771733467321,-637.35,0.00044383,120]
[406321052,1771733467331,-637.35,0.00044383,120]
[406321053,1771733467345,-637.35,0.00044383,120]
[406321054,1771733467354,-637.35,0.00044383,120]
[406321055,1771733467363,-637.35,0.00044383,120]
[406321056,1771733467373,-637.35,0.00044383,120]
[406321057,1771733467383,-637.35,0.00044383,120]
[406321058,1771733467392,-637.35,0.00044383,120]
[406321059,1771733467402,-637.35,0.00044383,120]
[406321060,1771733467412,-637.35,0.00044383,120]
[406321061,1771733467422,-637.35,0.00044383,120]
[406321062,1771733467520,-637.35,0.00044383,120]
[406321063,1771733467531,-637.35,0.00044383,120]
[406321064,1771733467544,-637.35,0.00044383,120]
[406321065,1771733467555,-637.35,0.00044383,120]
[406321066,1771733467565,-637.35,0.00044383,120]
[406321067,1771733467574,-637.35,0.00044383,120]
[406321068,1771733467583,-637.35,0.00044383,120]
[406321069,1771733467592,-637.35,0.00044383,120]
[406321070,1771733467601,-637.35,0.00044383,120]
[406321071,1771733467610,-637.35,0.00044383,120]
[406321072,1771733467620,-637.35,0.00044383,120]
[406321073,1771733467630,-637.35,0.00044383,120]
[406321074,1771733467639,-637.48472581,0.00044383,120]
[406321075,1771733467649,-551.149128,0.00044383,120]
[406321076,1771733467658,-500.0,0.00044383,120]
[406321077,1771733467669,-500.0,0.00044383,120]
[406321078,1771733467680,-500.0,0.00044383,120]
[406321079,1771733467691,-500.0,0.00044383,120]
[406321080,1771733467701,-500.0,0.00044383,120]
[406321081,1771733467710,-500.0,0.00044383,120]
[406321082,1771733467720,-500.0,0.00044383,2]
[406321083,1771733467731,-328.2509588,0.00044383,120]
[406321084,1771733467740,-500.0,0.00044383,2]
[406321085,1771733467749,-500.0,0.00044383,2]
[406321086,1771733467758,-500.0,0.00044383,2]
[406321087,1771733467767,-500.0,0.00044383,2]
[406321088,1771733467777,-500.0,0.00044383,2]
[406321089,1771733467786,-500.0,0.00044383,2]
[406321090,1771733467796,-500.0,0.00044383,2]
[406321091,1771733467806,-500.0,0.00044383,2]
[406321092,1771733467816,-500.0,0.00044383,2]
[406321093,1771733467825,-500.0,0.00044383,2]
[406321094,1771733467835,-500.0,0.00044383,2]
[406321095,1771733467844,-500.0,0.00044383,2]
[406321096,1771733467857,-500.0,0.00044383,2]
[406321097,1771733467868,-500.0,0.00044383,2]
[406321098,1771733467876,-500.0,0.00044383,120]
[406321099,1771733467886,-500.0,0.00044383,120]
[406321100,1771733467896,-500.0,0.00044383,2]
[406321101,1771733467907,-500.0,0.00044383,120]
[406321102,1771733467917,-500.0,0.00044383,2]
[406321103,1771733467927,-500.0,0.00044383,120]
[406321104,1771733467937,-640.68528742,0.00044383,2]
[406321105,1771733467947,-500.0,0.00044383,120]
[406321106,1771733467956,-500.0,0.00044383,120]
[406321107,1771733467966,-500.0,0.00044383,120]
[406321108,1771733467976,-500.0,0.00044383,120]
[406321109,1771733467986,-500.0,0.00044383,120]
[406321110,1771733467995,-500.0,0.00044383,120]
[406321111,1771733468005,-500.0,0.00044383,120]
[406321112,1771733468014,-500.0,0.00044383,120]
[406321113,1771733468024,-500.0,0.00044383,120]
[406321114,1771733468034,-500.0,0.00044383,120]
[406321115,1771733468043,-500.0,0.00044383,120]
[406321116,1771733468053,-500.0,0.00044383,120]
[406321117,1771733468063,-500.0,0.00044383,120]
[406321118,1771733468072,-500.0,0.00044383,120]
[406321119,1771733468082,-226.72558718,0.00044383,120]
[406321120,1771733468092,-702.48,0.00044383,120]
[406321121,1771733468102,-702.48,0.00044383,120]
[406321122,1771733468112,-702.48,0.00044383,120]
[406321123,1771733468121,-702.48,0.00044383,120]
[406321124,1771733468131,-702.48,0.00044383,120]
[406321125,1771733468140,-702.48,0.00044383,120]
[406321126,1771733468150,-702.48,0.00044383,120]
[406321127,1771733468160,-239.54560301,0.00044383,120]
[406321128,1771733468170,-702.48,0.00044383,120]
[406321129,1771733468179,-702.48,0.00044383,120]
[406321130,1771733468189,-702.48,0.00044383,120]
[406321131,1771733468198,-702.48,0.00044383,120]
[406321132,1771733468207,-702.48,0.00044383,120]
[406321133,1771733468217,-702.48,0.00044383,120]
[406321134,1771733468227,-702.48,0.00044383,120]
[406321135,1771733468236,-702.48,0.00044383,120]
[406321136,1771733468247,-702.48,0.00044383,120]
[406321137,1771733468258,-702.48,0.00044383,120]
[406321138,1771733468268,-702.48,0.00044383,120]
[406321139,1771733468277,-702.48,0.00044383,120]
[406321140,1771733468286,-702.48,0.00044383,120]
[406321141,1771733468295,-702.48,0.00044383,120]
[406321142,1771733468304,-702.48,0.00044383,120]
[406321143,1771733468313,-702.48,0.00044383,120]
[406321144,1771733468322,-702.58118188,0.00044383,120]
[406321145,1771733468331,-500.0,0.00044383,120]
[406321146,1771733468340,-500.0,0.00044383,120]
[406321147,1771733468349,-241.08026737,0.00044383,120]
[406321148,1771733468358,-500.0,0.00044383,120]
[406321149,1771733468367,-500.0,0.00044383,120]
[406321150,1771733468377,-500.0,0.00044383,120]
[406321151,1771733468388,-500.0,0.00044383,120]
[406321152,1771733468397,-611.30477715,0.00044383,120]
[406321153,1771733468407,-497.33621717,0.00044383,120]
[406321154,1771733468416,-500.0,0.00044383,120]
[406321155,1771733468425,-209.64506793,0.00044383,120]
[406321156,1771733468435,-513.13277956,0.00044383,120]
[406321157,1771733468444,-354.18593617,0.00044383,120]
[406321158,1771733468454,-474.7815391,0.00044383,120]
[406321159,1771733468464,-516.1368301,0.00044383,120]
[406321160,1771733468475,-558.4457784,0.00044383,120]
[406321161,1771733468486,-166.47291661,0.00044383,120]
[406321162,1771733468495,-500.0,0.00044383,120]
[406321163,1771733468505,-177.86167028,0.00044383,120]
[406321164,1771733468515,-511.49232865,0.00044383,120]
[406321165,1771733468524,-520.85336549,0.00044383,120]
[406321166,1771733468533,-575.42973819,0.00044383,120]
[406321167,1771733468542,-500.0,0.00044383,120]
[406321168,1771733468552,-500.0,0.00044383,120]
[406321169,1771733468562,-424.91980047,0.00044383,120]
[406321170,1771733468571,-237.20840459,0.00044383,120]
[406321171,1771733468580,-500.0,0.00044383,120]
[406321172,1771733468589,-500.0,0.00044383,120]
[406321173,1771733468598,-500.0,0.00044383,120]
[406321174,1771733468607,-307.25945133,0.00044383,120]
[406321175,1771733468616,-500.0,0.00044383,120]
[406321176,1771733468625,-500.0,0.00044383,120]
[406321177,1771733468636,-204.65233609,0.00044383,120]
[406321178,1771733468647,-391.45187275,0.00044383,120]
[406321179,1771733468656,-500.0,0.00044383,120]
[406321180,1771733468666,-500.0,0.00044383,120]
[406321181,1771733468675,-500.0,0.00044383,120]
[406321182,1771733468685,-515.78082339,0.00044383,120]
[406321183,1771733468694,-500.0,0.00044383,120]
[406321184,1771733468703,-504.13880972,0.00044383,120]
[406321185,1771733468713,-500.0,0.00044383,120]
[406321186,1771733468723,-299.35072604,0.00044383,120]
[406321187,1771733468734,-500.0,0.00044383,120]
[406321188,1771733468745,-500.0,0.00044383,120]
[406321189,1771733468756,-500.0,0.00044383,120]
[406321190,1771733468767,-500.0,0.00044383,120]
[406321191,1771733468776,-500.0,0.00044383,120]
[406321192,1771733468787,-500.0,0.00044383,120]
[406321193,1771733468799,-500.0,0.00044383,120]
[406321194,1771733468809,-500.0,0.00044383,120]
[406321195,1771733468818,-500.0,0.00044383,120]
[406321196,1771733468828,-500.0,0.00044383,120]
[406321197,1771733468838,-500.0,0.00044383,120]
[406321198,1771733468848,-500.0,0.00044383,120]
[406321199,1771733468862,-308.41757719,0.00044383,120]
[406321200,1771733468871,-500.0,0.00044383,120]
[406321201,1771733468880,-500.0,0.00044383,120]
[406321202,1771733468891,-507.16201202,0.00044383,120]
[406321203,1771733468900,-524.93141439,0.00044383,120]
[406321204,1771733468910,-519.26435918,0.00044383,120]
[406321205,1771733468919,-500.0,0.00044383,2]
[406321206,1771733468930,-156.2910969,0.00044383,2]
[406321207,1771733468940,-500.0,0.00044383,120]
[406321208,1771733468950,-500.0,0.00044383,120]
[406321209,1771733468960,-281.16883124,0.00044383,120]
[406321210,1771733468970,-500.0,0.00044383,120]
[406321211,1771733468979,-500.0,0.00044383,120]
[406321212,1771733468989,-500.0,0.00044383,120]
[406321213,1771733468998,-500.0,0.00044383,120]
[406321214,1771733469007,-500.0,0.00044383,120]
[406321215,1771733469016,-500.0,0.00044383,120]
[406321216,1771733469025,-500.0,0.00044383,120]
[406321217,1771733469122,-535.09686526,0.00044383,120]
[406321218,1771733469131,-541.68474787,0.00044383,120]